fUSD/lending_fUSD_20250708
["ID","MTS","AMOUNT","RATE_DAILY","PERIOD"]
[370324615,1751957474470,-460.0,0.00028841,3]
[370324616,1751957474479,-614.41,0.00028841,3]
[370324617,1751957474488,-480.06,0.00028841,3]
[370324618,1751957474498,-460.0,0.00028841,3]
[370324619,1751957474507,-460.0,0.00028841,3]
[370324620,1751957474516,-460.0,0.00028841,3]
[370324621,1751957474525,-460.0,0.00028841,3]
[370324622,1751957474535,-460.0,0.00028841,3]
[370324623,1751957474544,-460.0,0.00028841,3]
[370324624,1751957474553,-1312.04,0.00028841,3]
[370324625,1751957474562,-478.69,0.00028841,3]
[370324626,1751957474571,-460.0,0.00028841,3]
[370324627,1751957474580,-460.0,0.00028841,3]
[370324628,1751957474590,-460.0,0.00028841,3]
[370324629,1751957474599,-661.86,0.00028841,3]
[370324630,1751957474608,-476.45,0.00028841,3]
[370324631,1751957474617,-151.0,0.00028841,7]
[370324632,1751957474627,-460.0,0.00028841,3]
[370324633,1751957474636,-591.32,0.00028841,3]
[370324634,1751957474646,-460.0,0.00028841,3]
[370324635,1751957474655,-460.0,0.00028841,3]
[370324636,1751957474665,-460.0,0.00028841,3]
[370324637,1751957474674,-494.14352341,0.00028841,3]
[370324638,1751957474685,-460.0,0.00028841,3]
[370324639,1751957474694,-460.0,0.00028841,3]
[370324640,1751957474703,-467.33,0.00028841,3]
[370324641,1751957474713,-460.0,0.00028841,3]
[370324642,1751957474722,-460.0,0.00028841,3]
[370324643,1751957474731,-460.0,0.00028841,3]
[370324644,1751957474740,-460.0,0.00028841,3]
[370324645,1751957474751,-460.0,0.00028841,3]
[370324646,1751957474760,-460.0,0.00028841,3]
[370324647,1751957474770,-460.0,0.00028841,3]
[370324648,1751957474779,-460.0,0.00028841,3]
[370324649,1751957474788,-460.0,0.00028841,3]
[370324650,1751957474797,-460.0,0.00028841,3]
[370324651,1751957474806,-460.0,0.00028841,3]
[370324652,1751957474815,-460.0,0.00028841,3]
[370324653,1751957474825,-460.0,0.00028841,3]
[370324654,1751957474834,-460.0,0.00028841,3]
[370324655,1751957474844,-1392.03,0.00028841,3]
[370324656,1751957474853,-460.0,0.00028841,3]
[370324657,1751957474862,-3549.568053,0.00028841,7]
[370324658,1751957474871,-1737.3,0.00028841,3]
[370324659,1751957474880,-460.0,0.00028841,3]
[370324660,1751957474889,-460.0,0.00028841,3]
[370324661,1751957474900,-3549.568053,0.00028841,7]
[370324662,1751957474910,-460.0,0.00028841,3]
[370324663,1751957474920,-460.0,0.00028841,3]
[370324664,1751957474929,-460.0,0.00028841,3]
[370324665,1751957474940,-460.0,0.00028841,3]
[370324666,1751957474949,-226.46794808,0.00028841,3]
[370324667,1751957474960,-460.0,0.00028841,3]
[370324668,1751957474971,-460.0,0.00028841,3]
[370324669,1751957474981,-559.45224815,0.00028841,3]
[370324670,1751957474990,-460.0,0.00028841,3]
[370324671,1751957475002,-460.0,0.00028841,3]
[370324672,1751957475011,-460.0,0.00028841,3]
[370324673,1751957475021,-460.0,0.00028841,3]
[370324674,1751957475031,-778.04,0.00028841,3]
[370324675,1751957475040,-460.0,0.00028841,3]
[370324676,1751957475050,-620.38,0.00028841,3]
[370324677,1751957475061,-768.85,0.00028841,3]
[370324678,1751957475070,-672.02,0.00028841,3]
[370324679,1751957475080,-460.0,0.00028841,3]
[370324680,1751957475090,-460.0,0.00028841,3]
[370324681,1751957475099,-490.98052785,0.00028841,3]
[370324682,1751957475110,-521.51525994,0.00028841,3]
[370324683,1751957475121,-460.0,0.00028841,3]
[370324684,1751957475132,-377.05077783,0.00028841,3]
[370324685,1751957475141,-151.0,0.00028841,7]
[370324686,1751957475152,-460.0,0.00028841,3]
[370324687,1751957475161,-151.0,0.00028841,7]
[370324688,1751957475170,-676.45,0.00028841,3]
[370324689,1751957475179,-460.0,0.00028841,3]
[370324690,1751957475187,-480.73817904,0.00028841,3]
[370324691,1751957475197,-460.0,0.00028841,3]
[370324692,1751957475206,-529.89828879,0.00028841,3]
[370324693,1751957475215,-460.0,0.00028841,3]
[370324694,1751957475224,-401.86886628,0.00028841,3]
[370324695,1751957475233,-460.0,0.00028841,3]
[370324696,1751957475243,-460.0,0.00028841,3]
[370324697,1751957475253,-460.0,0.00028841,3]
[370324698,1751957475262,-520.64960611,0.00028841,3]
[370324699,1751957475271,-460.0,0.00028841,3]
[370324700,1751957475280,-460.0,0.00028841,3]
[370324701,1751957475289,-460.0,0.00028841,3]
[370324702,1751957475298,-460.0,0.00028841,3]
[370324703,1751957475308,-460.0,0.00028841,3]
[370324704,1751957475317,-521.28631079,0.00028841,3]
[370324705,1751957475326,-760.33,0.00028841,3]
[370324706,1751957475336,-460.0,0.00028841,3]
[370324707,1751957475533,-460.0,0.00028841,3]
[370324708,1751957475543,-460.0,0.00028841,3]
[370324709,1751957475552,-783.4,0.00028841,3]
[370324710,1751957475562,-460.0,0.00028841,3]
[370324711,1751957475572,-460.0,0.00028841,3]
[370324712,1751957475582,-460.0,0.00028841,3]
[370324713,1751957475592,-584.51,0.00028841,3]
[370324714,1751957475601,-460.0,0.00028841,3]
[370324715,1751957475611,-1903.07,0.00028841,3]
[370324716,1751957475622,-460.0,0.00028841,3]
[370324717,1751957475631,-462.19,0.00028841,3]
[370324718,1751957475641,-460.0,0.00028841,3]
[370324719,1751957475651,-460.0,0.00028841,3]
[370324720,1751957475661,-460.0,0.00028841,3]
[370324721,1751957475670,-460.0,0.00028841,3]
[370324722,1751957475679,-460.0,0.00028841,3]
[370324723,1751957475690,-907.32,0.00028841,3]
[370324724,1751957475699,-498.29,0.00028841,3]
[370324725,1751957475710,-460.0,0.00028841,3]
[370324726,1751957475720,-774.64,0.00028841,3]
[370324727,1751957475729,-460.0,0.00028841,3]
[370324728,1751957475738,-460.0,0.00028841,3]
[370324729,1751957475749,-460.0,0.00028841,3]
[370324730,1751957475758,-505.24,0.00028841,3]
[370324731,1751957475767,-460.0,0.00028841,3]
[370324732,1751957475777,-1272.74,0.00028841,3]
[370324733,1751957475788,-460.0,0.00028841,3]
[370324734,1751957475798,-460.0,0.00028841,3]
[370324735,1751957475808,-460.0,0.00028841,3]
[370324736,1751957475817,-460.0,0.00028841,3]
[370324737,1751957475827,-797.61,0.00028841,3]
[370324738,1751957475836,-1054.68,0.00028841,3]
[370324739,1751957475846,-460.0,0.00028841,3]
[370324740,1751957475855,-460.0,0.00028841,3]
[370324741,1751957475864,-460.0,0.00028841,2]
[370324742,1751957475875,-460.0,0.00028841,3]
[370324743,1751957475884,-460.0,0.00028841,3]
[370324744,1751957475894,-460.0,0.00028841,3]
[370324745,1751957475903,-460.0,0.00028841,3]
[370324746,1751957475913,-460.0,0.00028841,3]
[370324747,1751957475922,-460.0,0.00028841,3]
[370324748,1751957475931,-460.0,0.00028841,3]
[370324749,1751957475940,-490.81572683,0.00028841,3]
[370324750,1751957475950,-460.0,0.00028841,3]
[370324751,1751957475959,-607.79,0.00028841,3]
[370324752,1751957475968,-674.41,0.00028841,3]
[370324753,1751957475977,-497.46,0.00028841,3]
[370324754,1751957475986,-460.0,0.00028841,3]
[370324755,1751957475996,-460.0,0.00028841,3]
[370324756,1751957476005,-460.0,0.00028841,3]
[370324757,1751957476014,-569.89,0.00028841,3]
[370324758,1751957476032,-460.0,0.00028841,3]
[370324759,1751957476044,-460.0,0.00028841,3]
[370324760,1751957476055,-460.0,0.00028841,3]
[370324761,1751957476064,-460.0,0.00028841,3]
[370324762,1751957476075,-564.2371783,0.00028841,3]
[370324763,1751957476086,-522.42782702,0.00028841,3]
[370324764,1751957476099,-609.81,0.00028841,3]
[370324765,1751957476111,-460.0,0.00028841,3]
[370324766,1751957476122,-460.0,0.00028841,3]
[370324767,1751957476132,-271.16228,0.00028841,7]
[370324768,1751957476145,-491.01996515,0.00028841,3]
[370324769,1751957476155,-590.01,0.00028841,3]
[370324770,1751957476167,-460.0,0.00028841,3]
[370324771,1751957476177,-573.71,0.00028841,3]
[370324772,1751957476187,-271.16228,0.00028841,7]
[370324773,1751957476198,-352.84965486,0.00028841,3]
[370324774,1751957476209,-151.0,0.00028841,7]
[370324775,1751957476220,-460.0,0.00028841,3]
[370324776,1751957476231,-460.0,0.00028841,3]
[370324777,1751957476242,-175.602357,0.00028841,7]
[370324778,1751957476253,-554.85,0.00028841,3]
[370324779,1751957476262,-460.0,0.00028841,3]
[370324780,1751957476272,-460.0,0.00028841,3]
[370324781,1751957476282,-460.0,0.00028841,3]
[370324782,1751957476292,-460.0,0.00028841,3]
[370324783,1751957476304,-594.79,0.00028841,3]
[370324784,1751957476315,-460.0,0.00028841,3]
[370324785,1751957476325,-460.0,0.00028841,3]
[370324786,1751957476335,-460.0,0.00028841,3]
[370324787,1751957476345,-460.0,0.00028841,3]
[370324788,1751957476356,-460.0,0.00028841,3]
[370324789,1751957476366,-460.0,0.00028841,3]
[370324790,1751957476375,-626.02,0.00028841,3]
[370324791,1751957476386,-460.0,0.00028841,3]
[370324792,1751957476400,-679.38,0.00028841,3]
[370324793,1751957476410,-460.0,0.00028841,3]
[370324794,1751957476420,-460.0,0.00028841,3]
[370324795,1751957476431,-491.07016962,0.00028841,3]
[370324796,1751957476440,-289.01038,0.00028841,7]
[370324797,1751957476450,-460.0,0.00028841,3]
[370324798,1751957476460,-460.0,0.00028841,3]
[370324799,1751957476469,-460.0,0.00028841,3]
[370324800,1751957476479,-493.69,0.00028841,3]
[370324801,1751957476489,-460.0,0.00028841,3]
[370324802,1751957476500,-460.0,0.00028841,3]
[370324803,1751957476510,-460.0,0.00028841,3]
[370324804,1751957476521,-654.85,0.00028841,3]
[370324805,1751957476530,-460.0,0.00028841,3]
[370324806,1751957476540,-460.0,0.00028841,3]
[370324807,1751957476551,-460.0,0.00028841,3]
[370324808,1751957476560,-460.0,0.00028841,3]
[370324809,1751957476570,-460.0,0.00028841,3]
[370324810,1751957476580,-460.0,0.00028841,3]
[370324811,1751957476590,-716.74,0.00028841,3]
[370324812,1751957476599,-151.0,0.00028841,7]
[370324813,1751957476609,-970.88,0.00028841,3]
[370324814,1751957476619,-460.0,0.00028841,3]
[370324815,1751957476628,-491.0806645,0.00028841,3]
[370324816,1751957476638,-151.0,0.00028841,7]
[370324817,1751957476647,-460.0,0.00028841,3]
[370324818,1751957476657,-460.0,0.00028841,3]
[370324819,1751957476667,-460.0,0.00028841,3]
[370324820,1751957476676,-529.98,0.00028841,3]
[370324821,1751957476685,-1640.17,0.00028841,3]
[370324822,1751957476695,-460.0,0.00028841,3]
[370324823,1751957476705,-460.0,0.00028841,3]
[370324824,1751957476715,-460.0,0.00028841,3]
[370324825,1751957476724,-460.0,0.00028841,3]
[370324826,1751957476733,-460.0,0.00028841,3]
[370324827,1751957476743,-1380.0,0.00028841,3]
[370324828,1751957476753,-460.0,0.00028841,3]
[370324829,1751957476763,-460.0,0.00028841,3]
[370324830,1751957476772,-460.0,0.00028841,3]
[370324831,1751957476782,-460.0,0.00028841,3]
[370324832,1751957476791,-460.0,0.00028841,3]
[370324833,1751957476801,-460.0,0.00028841,3]
[370324834,1751957476810,-936.02,0.00028841,3]
[370324835,1751957476820,-460.0,0.00028841,3]
[370324836,1751957476829,-460.0,0.00028841,3]
[370324837,1751957476850,-460.0,0.00028841,3]
[370324838,1751957476874,-460.0,0.00028841,3]
[370324839,1751957476895,-460.0,0.00028841,3]
[370324840,1751957476915,-460.0,0.00028841,3]
[370324841,1751957476933,-1940.43,0.00028841,3]
[370324842,1751957476954,-701.43,0.00028841,3]
[370324843,1751957476973,-460.0,0.00028841,3]
[370324844,1751957476993,-460.0,0.00028841,3]
[370324845,1751957477012,-460.0,0.00028841,3]
[370324846,1751957477030,-460.0,0.00028841,3]
[370324847,1751957477052,-460.0,0.00028841,3]
[370324848,1751957477069,-460.0,0.00028841,3]
[370324849,1751957477087,-998.35,0.00028841,3]
[370324850,1751957477103,-460.0,0.00028841,3]
[370324851,1751957477122,-460.0,0.00028841,3]
[370324852,1751957477137,-460.0,0.00028841,3]
[370324853,1751957477154,-460.0,0.00028841,3]
[370324854,1751957477169,-492.48438777,0.00028841,3]
[370324855,1751957477185,-460.0,0.00028841,3]
[370324856,1751957477202,-660.39,0.00028841,3]
[370324857,1751957477218,-460.0,0.00028841,3]
[370324858,1751957477234,-521.62,0.00028841,3]
[370324859,1751957477250,-460.0,0.00028841,3]
[370324860,1751957477265,-460.0,0.00028841,3]
[370324861,1751957477280,-1299.33,0.00028841,3]
[370324862,1751957477297,-696.29,0.00028841,3]
[370324863,1751957477312,-460.0,0.00028841,3]
[370324864,1751957477328,-460.0,0.00028841,3]
[370324865,1751957477343,-460.0,0.00028841,3]
[370324866,1751957477358,-460.0,0.00028841,3]
[370324867,1751957477373,-1499.73,0.00028841,3]
[370324868,1751957477388,-460.0,0.00028841,3]
[370324869,1751957477405,-460.0,0.00028841,3]
[370324870,1751957477421,-804.52,0.00028841,3]
[370324871,1751957477437,-460.0,0.00028841,3]
[370324872,1751957477452,-460.0,0.00028841,3]
[370324873,1751957477470,-151.0,0.00028841,7]
[370324874,1751957477485,-460.0,0.00028841,3]
[370324875,1751957477501,-557.9,0.00028841,3]
[370324876,1751957477517,-151.0,0.00028841,7]
[370324877,1751957477533,-460.0,0.00028841,3]
[370324878,1751957477548,-500.19,0.00028841,3]
[370324879,1751957477564,-460.0,0.00028841,3]
[370324880,1751957477580,-555.83,0.00028841,3]
[370324881,1751957477596,-460.0,0.00028841,3]
[370324882,1751957477611,-460.0,0.00028841,3]
[370324883,1751957477626,-460.0,0.00028841,3]
[370324884,1751957477642,-560.23,0.00028841,3]
[370324885,1751957477657,-460.0,0.00028841,3]
[370324886,1751957477672,-460.0,0.00028841,3]
[370324887,1751957477694,-460.0,0.00028841,3]
[370324888,1751957477711,-460.0,0.00028841,3]
[370324889,1751957477726,-485.37,0.00028841,3]
[370324890,1751957477740,-460.0,0.00028841,3]
[370324891,1751957477757,-300.0,0.00028841,3]
[370324892,1751957477771,-460.0,0.00028841,3]
[370324893,1751957477786,-460.0,0.00028841,3]
[370324894,1751957477802,-460.0,0.00028841,3]
[370324895,1751957477816,-460.0,0.00028841,3]
[370324896,1751957477830,-460.0,0.00028841,3]
[370324897,1751957477845,-216.984331,0.00028841,7]
[370324898,1751957477861,-460.0,0.00028841,3]
[370324899,1751957477875,-460.0,0.00028841,3]
[370324900,1751957477891,-460.0,0.00028841,3]
[370324901,1751957477907,-460.0,0.00028841,3]
[370324902,1751957477925,-479.45,0.00028841,3]
[370324903,1751957477941,-460.0,0.00028841,3]
[370324904,1751957477956,-521.9,0.00028841,3]
[370324905,1751957477971,-460.0,0.00028841,3]
[370324906,1751957477987,-499.92,0.00028841,3]
[370324907,1751957478003,-460.0,0.00028841,3]
[370324908,1751957478019,-1479.25,0.00028841,3]
[370324909,1751957478034,-460.0,0.00028841,3]
[370324910,1751957478050,-460.0,0.00028841,3]
[370324911,1751957478065,-536.98,0.00028841,3]
[370324912,1751957478080,-460.0,0.00028841,3]
[370324913,1751957478096,-460.0,0.00028841,3]
[370324914,1751957478111,-460.0,0.00028841,3]
[370324915,1751957478126,-460.0,0.00028841,3]
[370324916,1751957478140,-460.0,0.00028841,3]
[370324917,1751957478155,-460.0,0.00028841,3]
[370324918,1751957478171,-460.0,0.00028841,3]
[370324919,1751957478187,-878.73,0.00028841,3]
[370324920,1751957478202,-574.87,0.00028841,3]
[370324921,1751957478217,-1197.49,0.00028841,3]
[370324922,1751957478233,-460.0,0.00028841,3]
[370324923,1751957478249,-151.0,0.00028841,7]
[370324924,1751957478264,-460.0,0.00028841,3]
[370324925,1751957478279,-460.0,0.00028841,3]
[370324926,1751957478295,-151.0,0.00028841,7]
[370324927,1751957478310,-200.62940886,0.00028841,3]
[370324928,1751957478326,-460.0,0.00028841,3]
[370324929,1751957478342,-693.09,0.00028841,3]
[370324930,1751957478357,-460.0,0.00028841,3]
[370324931,1751957478373,-151.0,0.00028841,7]
[370324932,1751957478389,-460.0,0.00028841,3]
[370324933,1751957478410,-486.48,0.00028841,3]
[370324934,1751957478425,-150.53727837,0.00028855,2]
[370324935,1751957478441,-1565.0,0.00028859,2]
[370324936,1751957478458,-500.0,0.00028862,3]
[370324937,1751957478472,-460.0,0.00028862,3]
[370324938,1751957478489,-460.0,0.00028862,3]
[370324939,1751957478505,-460.0,0.00028862,3]
[370324940,1751957478522,-460.0,0.00028862,3]
[370324941,1751957478537,-481.99938698,0.00028862,3]
[370324942,1751957478553,-460.0,0.00028862,3]
[370324943,1751957478570,-460.0,0.00028862,3]
[370324944,1751957478585,-460.0,0.00028862,3]
[370324945,1751957478601,-460.0,0.00028862,3]
[370324946,1751957478616,-460.0,0.00028862,3]
[370324947,1751957478632,-460.0,0.00028862,3]
[370324948,1751957478648,-460.0,0.00028862,3]
[370324949,1751957478664,-203.87177337,0.00028862,3]
[370324950,1751957478680,-460.0,0.00028862,3]
[370324951,1751957478695,-460.0,0.00028862,3]
[370324952,1751957478711,-460.0,0.00028862,3]
[370324953,1751957478728,-531.32,0.00028862,3]
[370324954,1751957478742,-1810.3,0.00028862,3]
[370324955,1751957478758,-1305.51,0.00028862,3]
[370324956,1751957478775,-3739.85,0.00028862,3]
[370324957,1751957478790,-697.14,0.00028862,3]
[370324958,1751957478805,-1583.81,0.00028862,3]
[370324959,1751957478821,-561.22,0.00028862,3]
[370324960,1751957478836,-1623.61,0.00028862,3]
[370324961,1751957478852,-1565.7,0.00028862,3]
[370324962,1751957478866,-646.34,0.00028862,3]
[370324963,1751957478881,-2043.53,0.00028862,3]
[370324964,1751957478896,-753.16,0.00028862,3]
[370324965,1751957478911,-460.0,0.00028862,3]
[370324966,1751957478926,-757.87,0.00028862,3]
[370324967,1751957478941,-1516.89,0.00028862,3]
[370324968,1751957479251,-1173.13,0.00028862,3]
[370324969,1751957479267,-460.0,0.00028862,3]
[370324970,1751957479278,-5020.73,0.00028862,3]
[370324971,1751957479287,-1909.44,0.00028862,3]
[370324972,1751957479297,-1322.91,0.00028862,3]
[370324973,1751957479307,-1574.16,0.00028862,3]
[370324974,1751957479317,-13628.2,0.00028862,3]
[370324975,1751957479326,-4123.53,0.00028862,3]
[370324976,1751957479335,-1420.18,0.00028862,3]
[370324977,1751957479345,-5071.12,0.00028862,3]
[370324978,1751957479355,-2171.4,0.00028862,3]
[370324979,1751957479364,-1235.29,0.00028862,3]
[370324980,1751957479374,-820.76,0.00028862,3]
[370324981,1751957479384,-2160.37,0.00028862,3]
[370324982,1751957479393,-4713.49,0.00028862,3]
[370324983,1751957479406,-1019.03,0.00028862,3]
[370324984,1751957479416,-460.0,0.00028862,3]
[370324985,1751957479426,-2200.17,0.00028862,3]
[370324986,1751957479435,-792.56,0.00028862,3]
[370324987,1751957479446,-1294.98,0.00028862,3]
[370324988,1751957479455,-1894.11,0.00028862,3]
[370324989,1751957479465,-460.0,0.00028862,3]
[370324990,1751957479476,-915.49,0.00028862,3]
[370324991,1751957479485,-460.0,0.00028871,3]
[370324992,1751957479496,-460.0,0.00028871,3]
[370324993,1751957479505,-460.0,0.00028871,3]
[370324994,1751957479515,-775.41,0.00028871,3]
[370324995,1751957479524,-1254.08,0.00028871,3]
[370324996,1751957479534,-590.63536755,0.00028871,3]
[370324997,1751957479544,-960.37,0.00028871,3]
[370324998,1751957479553,-711.97,0.00028871,3]
[370324999,1751957479563,-2337.61,0.00028871,3]
[370325000,1751957479572,-151.0,0.00028871,7]
[370325001,1751957479581,-151.0,0.00028871,7]
[370325002,1751957479591,-151.0,0.00028871,7]
[370325003,1751957479602,-151.0,0.00028871,7]
[370325004,1751957479611,-460.0,0.00028872,3]
[370325005,1751957479620,-460.0,0.00028872,3]
[370325006,1751957479630,-460.0,0.00028872,3]
[370325007,1751957479640,-460.0,0.00028872,3]
[370325008,1751957479650,-460.0,0.00028872,3]
[370325009,1751957479659,-460.0,0.00028872,3]
[370325010,1751957479669,-151.0,0.00028872,7]
[370325011,1751957479678,-712.28,0.00028872,3]
[370325012,1751957479687,-460.26956637,0.00028872,3]
[370325013,1751957479697,-460.0,0.00028872,3]
[370325014,1751957479706,-151.0,0.00028872,7]
[370325015,1751957479716,-460.0,0.00028872,3]
[370325016,1751957479725,-151.0,0.00028872,7]
[370325017,1751957479735,-460.0,0.00028872,3]
[370325018,1751957479745,-460.0,0.00028872,3]
[370325019,1751957479756,-460.0,0.00028872,3]
[370325020,1751957479765,-460.0,0.00028872,3]
[370325021,1751957479774,-460.0,0.00028872,3]
[370325022,1751957479783,-151.0,0.00028872,7]
[370325023,1751957479792,-164.90207306,0.00028873,5]
[370325024,1751957479802,-323.40659651,0.00028873,5]
[370325025,1751957479812,-500.0,0.00028873,5]
[370325026,1751957479822,-500.0,0.00028873,5]
[370325027,1751957479832,-157.81957771,0.00028873,5]
[370325028,1751957479843,-159.90936937,0.00028873,2]
[370325029,1751957479854,-500.0,0.00028873,5]
[370325030,1751957479865,-159.93208226,0.00028873,5]
[370325031,1751957479874,-159.92009877,0.00028873,2]
[370325032,1751957479884,-159.98588787,0.00028873,5]
[370325033,1751957479894,-500.0,0.00028873,5]
[370325034,1751957479905,-159.91272944,0.00028873,2]
[370325035,1751957479915,-500.0,0.00028873,5]
[370325036,1751957479927,-500.55126822,0.00028873,5]
[370325037,1751957479936,-502.72209595,0.00028873,5]
[370325038,1751957479945,-500.85390873,0.00028873,5]
[370325039,1751957479955,-313.15576944,0.00028873,5]
[370325040,1751957479964,-500.0,0.00028873,5]
[370325041,1751957479974,-500.0,0.00028873,5]
[370325042,1751957479984,-1507.64,0.00028873,3]
[370325043,1751957479993,-1409.52,0.00028873,3]
[370325044,1751957480003,-489.35,0.00028873,3]
[370325045,1751957480012,-937.97,0.00028873,3]
[370325046,1751957480022,-792.63,0.00028873,3]
[370325047,1751957480031,-477.32,0.00028873,3]
[370325048,1751957480041,-460.0,0.00028873,3]
[370325049,1751957480050,-1039.52,0.00028873,3]
[370325050,1751957480059,-1082.72,0.00028873,3]
[370325051,1751957480069,-883.24,0.00028873,3]
[370325052,1751957480078,-875.68,0.00028873,3]
[370325053,1751957480087,-460.0,0.00028873,3]
[370325054,1751957480097,-460.0,0.00028873,3]
[370325055,1751957480106,-460.0,0.00028873,3]
[370325056,1751957480115,-460.0,0.00028873,3]
[370325057,1751957480124,-150.0,0.00028877,2]
[370325058,1751957480133,-424.17832609,0.00028882,2]
[370325059,1751957480142,-1156.68456057,0.00028883,2]
[370325060,1751957480152,-200.0,0.00028883,2]
[370325061,1751957480161,-500.0,0.000289,10]
[370325062,1751957480170,-500.0,0.00028929,2]
[370325063,1751957480179,-454.0,0.00028929,2]
[370325064,1751957480188,-431.0,0.00028929,2]
[370325065,1751957480198,-150.0,0.00028929,2]
[370325066,1751957480208,-500.0,0.00028929,2]
[370325067,1751957480218,-205.05788818,0.00028929,2]
[370325068,1751957480228,-150.0,0.00028929,2]
[370325069,1751957480238,-606.06929692,0.00028929,2]
[370325070,1751957480248,-500.0,0.00028929,2]
[370325071,1751957480258,-500.0,0.00028929,2]
[370325072,1751957480267,-610.88650153,0.00028929,2]
[370325073,1751957480276,-250.26685492,0.00028929,2]
[370325074,1751957480286,-150.0,0.00028929,2]
[370325075,1751957480295,-150.0,0.00028929,2]
[370325076,1751957480305,-500.0,0.00028929,2]
[370325077,1751957480315,-735.0,0.00028929,2]
[370325078,1751957480325,-254.48647064,0.00028929,2]
[370325079,1751957480334,-500.0,0.00028929,2]
[370325080,1751957480343,-676.0,0.00028929,2]
[370325081,1751957480352,-500.0,0.00028929,2]
[370325082,1751957480362,-500.0,0.00028929,2]
[370325083,1751957480371,-1810.0,0.00028929,2]
[370325084,1751957480381,-500.0,0.00028929,2]
[370325085,1751957480391,-151.00355602,0.00028929,2]
[370325086,1751957480407,-500.0,0.00028929,2]
[370325087,1751957480418,-489.0,0.00028929,2]
[370325088,1751957480427,-175.96700135,0.00028929,2]
[370325089,1751957480438,-503.45592073,0.00028929,2]
[370325090,1751957480447,-151.0,0.00028929,7]
[370325091,1751957480456,-151.0,0.00028929,7]
[370325092,1751957480466,-151.0,0.00028929,7]
[370325093,1751957480476,-151.0,0.00028929,7]
[370325094,1751957480486,-500.0,0.00028929,3]
[370325095,1751957480497,-151.0,0.00028931,7]
[370325096,1751957480507,-151.0,0.00028931,7]
[370325097,1751957480517,-151.0,0.00028931,7]
[370325098,1751957480526,-222.377987,0.00028931,7]
[370325099,1751957480536,-222.377987,0.00028931,7]
[370325100,1751957480545,-151.0,0.00028931,7]
[370325101,1751957480555,-151.0,0.00028931,7]
[370325102,1751957480564,-198.324322,0.00028931,7]
[370325103,1751957480574,-151.0,0.00028931,7]
[370325104,1751957480584,-151.0,0.00028931,7]
[370325105,1751957480593,-151.0,0.00028931,7]
[370325106,1751957480603,-289.834285,0.00028931,7]
[370325107,1751957480612,-289.834285,0.00028931,7]
[370325108,1751957480621,-155.112922,0.00028931,7]
[370325109,1751957480630,-155.112922,0.00028931,7]
[370325110,1751957480640,-151.0,0.00028931,7]
[370325111,1751957480649,-151.0,0.00028931,7]
[370325112,1751957480659,-171.232214,0.00028931,7]
[370325113,1751957480668,-171.232214,0.00028931,7]
[370325114,1751957480677,-151.0,0.00028931,7]